Cogmind - Beta 13 @@@ ROGUE MODE // 2024.04.15 @ 02:41:34 Player: Person Guy Result: Destroyed by C-35 Carver with Carbide Saw Performance ------------- Evolutions (7) 3500 Regions Visited (17) 3400 Robots Destroyed (255) 1275 Value Destroyed (12456) 12456 Prototype IDs (15) 300 Alien Tech Used (0) 0 Bonus (5031) 5031 TOTAL SCORE: 25962 Bonus ------- High Alert Combat Kills 1867 Follower Combat Kills 1124 Entered Garrisons 600 Used RIF Installer 2000 Friendly Fire -560 Cogmind --------- Core Integrity 0/1300 Matter 41/300 Energy 73/100 System Corruption 16% Temperature Cool (0) Movement Core (200) Ox3 Location -3/Armory Parts ------- > --- POWER (2) -------- (None) > --- PROPULSION (4) --- (None) > --- UTILITY (11) ----- (None) > --- WEAPON (4) ------- Linear Accelerator > --- INVENTORY (5) ---- Advanced Coolant Injector Peak State ------------ > --- POWER ------------ Antimatter Reactor Light Antimatter Reactor > --- PROPULSION ------- Biometal Medium Treads Biometal Medium Treads Biometal Medium Treads Biometal Medium Treads > --- UTILITY ---------- Advanced Cooling System Experimental Coolant Injector Large Storage Unit Advanced Weight Redist. System Advanced Sensor Array Advanced Signal Interpreter Tactical Coordination Suite Advanced Target Analyzer Improved Phase Shifter Improved Propulsion Shielding Centrium Light Armor Plating > --- WEAPON ----------- Gatling Laser Wave Gun Heavy Gauss Cannon Linear Accelerator > --- INVENTORY -------- Advanced Cooling System Advanced Coolant Injector Experimental Energy Well System Shield Quantum Rifle Compact HERF Cannon Hypervelocity Railgun Hardcell Cannon Heavy Shock Bomb Launcher [Rating: 137] Favorites ----------- Power Light Angular Momentum Engine Engine Light Angular Momentum Engine Power Core Light Nuclear Core Reactor Antimatter Reactor Propulsion Light Treads Treads Light Treads Leg Carbon-fiber Leg Hover Unit Antigrav System Flight Unit Xenon Bombardment Thruster Utility Hacking Suite Device Coolant Injector Storage Large Storage Unit Processor Advanced Target Analyzer Hackware Hacking Suite Protection Improved Medium Armor Plating Weapon Gauss Cannon Energy Gun Heavy Laser Energy Cannon HERF Cannon Ballistic Gun Gauss Rifle Ballistic Cannon Gauss Cannon Launcher Rocket Array Special Weapon Remote Datajack Slashing Weapon Axe Build | -11 -10 -10 -10 -9 -8 -8 -7 -7 -7 -6 -5 -5 -5 -4 -4 -3 -3 ------- Run | Yrd Mat Min Exi Min Mat Gar Fac Low Low Fac Fac Gar Fac Fac Gar Res Arm Slots Evolved 14 | . . . . . 4 . 2 . . 2 2 . . 2 . 2 . Power 1 | . . . . . . . . . . . 1 . . . . . . Propulsion 2 | . . . . . 1 . . . . . 1 . . . . . . Utility 9 | . . . . . 2 . 2 . . 2 . . . 1 . 2 . Weapon 2 | . . . . . 1 . . . . . . . . 1 . . . Parts Attached 364 | 6 12 3 . . 7 23 72 1 . 54 11 26 44 27 26 48 4 Power 38 | 1 2 . . . 1 4 7 . . 2 3 3 4 3 4 3 1 Engine 12 | 1 2 . . . . . . . . 1 2 3 3 . . . . Core 19 | . . . . . 1 4 7 . . 1 1 . 1 2 2 . . Reactor 7 | . . . . . . . . . . . . . . 1 2 3 1 Propulsion 77 | 2 5 1 . . 1 8 11 . . 11 3 7 4 4 8 12 . Treads 33 | 2 5 1 . . 1 5 8 . . . . . 2 1 2 6 . Leg 37 | . . . . . . 3 3 . . 11 3 7 2 . 6 2 . Wheel . | . . . . . . . . . . . . . . . . . . Hover 5 | . . . . . . . . . . . . . . 3 . 2 . Flight 2 | . . . . . . . . . . . . . . . . 2 . Utility 110 | 1 2 . . . 3 2 24 . . 25 3 6 15 5 8 16 . Device 55 | . . . . . 2 1 8 . . 17 2 2 9 4 5 5 . Storage 10 | 1 1 . . . . . . . . 1 . . . . . 7 . Processor 8 | . . . . . . . 2 . . 1 1 2 . 1 . 1 . Hackware 22 | . 1 . . . . . 8 . . 3 . 2 5 . 1 2 . Protection 15 | . . . . . 1 1 6 . . 3 . . 1 . 2 1 . Artifact . | . . . . . . . . . . . . . . . . . . Weapon 139 | 2 3 2 . . 2 9 30 1 . 16 2 10 21 15 6 17 3 Energy Gun 30 | 1 1 1 . . . 3 3 . . 4 . 4 5 2 2 4 . Energy Cannon 15 | . . . . . . . 1 . . 2 . 2 3 4 1 2 . Ballistic Gun 24 | 1 2 1 . . . 4 4 . . 4 2 1 . . 3 2 . Ballistic Cannon 35 | . . . . . 2 . 17 . . 4 . . 1 2 . 6 3 Launcher 18 | . . . . . . 2 2 1 . 2 . 2 2 4 . 3 . Special Weapon 15 | . . . . . . . 2 . . . . 1 10 2 . . . Impact Weapon . | . . . . . . . . . . . . . . . . . . Slashing Weapon 2 | . . . . . . . 1 . . . . . . 1 . . . Piercing Weapon . | . . . . . . . . . . . . . . . . . . Special Melee Weapon . | . . . . . . . . . . . . . . . . . . Unidentified Prototypes 12 | . 1 . . . 1 . 3 . . 2 . . . . 1 4 . Parts Lost 102 | . 1 . . . . 6 9 . . 6 . 9 11 23 3 26 8 Power 18 | . 1 . . . . 1 2 . . 1 . 2 2 4 1 3 1 Propulsion 31 | . . . . . . 3 6 . . 2 . 3 3 6 . 6 2 Utility 27 | . . . . . . 1 1 . . 1 . 1 4 5 2 9 3 Weapon 26 | . . . . . . 1 . . . 2 . 3 2 8 . 8 2 Highest Loss Streak 14 | . 1 . . . . 4 2 . . 3 . 5 7 13 1 12 14 To Critical Strikes 1 | . . . . . . 1 . . . . . . . . . . . Average Slot Usage (%) 88 | . 84 100 100 100 87 90 92 100 100 97 99 79 86 58 76 84 23 Engine 3 | . 13 14 14 14 3 . . . . 2 6 5 8 . . . . Core 4 | . . . . . 5 9 5 7 7 3 3 . 1 3 7 . . Treads 10 | . 27 28 28 28 27 9 17 . . . . . 4 4 1 10 . Leg 9 | . . . . . . 15 1 23 23 19 23 22 14 . 15 6 . Device 8 | . . . . . 5 9 7 7 7 13 9 6 6 10 13 19 3 Storage 6 | . 14 14 14 14 9 9 7 7 7 6 5 5 5 3 . 3 3 Processor 2 | . . . . . . . . 7 7 2 . 1 5 7 10 9 5 Hackware 15 | . . 14 14 14 9 9 23 23 23 25 23 19 18 4 . . . Protection 2 | . . . . . . 2 3 . . 1 4 . 1 . 7 6 . Energy Gun 5 | . 8 14 14 14 9 9 2 . . 3 3 4 7 1 6 8 . Energy Cannon 1 | . . . . . . . . . . . 3 2 4 3 4 1 1 Ballistic Gun 5 | . 19 14 14 14 5 9 2 . . 5 7 5 . . 4 . . Ballistic Cannon 6 | . . . . . 11 3 13 17 15 7 . . . 6 . 6 2 Naked Turns 14 | . . . . . . . . . . . . . . . . . 14 Heaviest Build 102 | 10 32 29 29 29 46 47 53 44 44 65 68 61 70 92 69 102 26 Greatest Support 149 | 40 40 40 40 40 60 60 71 50 50 60 78 76 66 60 89 149 24 Greatest Overweight (x) 15 | . . . . . . 1 2 . . 1 . 1 1 2 . 15 1 Average Overweight (x) . | . . . . . . . . . . . . . . . . . . Largest Inventory Capacity 20 | 8 15 15 15 15 15 15 15 15 15 15 15 15 15 15 5 20 5 Average Capacity 13 | 7 11 15 15 15 15 15 15 15 15 15 15 15 15 12 5 11 5 Most Carried 15 | 4 8 11 10 11 10 15 15 14 14 15 14 15 15 15 5 11 3 Average Carried 11 | 1 6 8 10 10 8 12 13 13 14 12 11 11 14 10 3 6 1 Final Capacity 15 | 8 15 15 15 15 15 15 15 15 15 15 15 15 15 5 5 5 5 Final Carried 15 | 1 7 10 10 11 9 15 13 14 14 13 11 14 15 5 5 3 1 Class Distribution -------------------- 19% | Hacker-Tank 14% | Hacker-Gunner 13% | Bothacker-Gunner 11% | Scavenger-Gunner 11% | Scavenger-Tank 10% | Mutant 4% | Bothacker-Mutant 4% | Bothacker-Tank 3% | Scavenger-Mutant 3% | Gunner Dominant Class ---------------- Mutant | -10/Materials Mutant | -10/Mines Scavenger-Mutant | -10/Exiles Scavenger-Mutant | -9/Mines Scavenger-Gunner | -8/Materials Scavenger-Gunner | -8/Garrison Hacker-Tank | -7/Factory Hacker-Gunner | -7/Lower Caves Hacker-Gunner | -7/Lower Caves Hacker-Tank | -6/Factory Hacker-Tank | -5/Factory Hacker-Gunner | -5/Garrison Bothacker-Gunner | -5/Factory Gunner | -4/Factory Scavenger-Tank | -4/Garrison Scavenger-Tank | -3/Research Mutant | -3/Armory Resources | -11 -10 -10 -10 -9 -8 -8 -7 -7 -7 -6 -5 -5 -5 -4 -4 -3 -3 ----------- Run | Yrd Mat Min Exi Min Mat Gar Fac Low Low Fac Fac Gar Fac Fac Gar Res Arm Matter Collected 8403 | 185 302 26 . 11 132 746 2055 91 . 1524 171 574 766 469 464 881 6 Remotely . | . . . . . . . . . . . . . . . . . . Salvage Created 10085 | . 582 77 . 11 139 716 1690 153 . 1967 554 1136 1051 630 185 1194 . Parts 464 | . 34 4 . 4 4 49 86 8 . 74 24 33 38 46 10 50 . Haulers Intercepted 5 | . 1 . . . . . 1 . . 1 . . 1 . . 1 . Recyclers Shooed 15 | . . . . . . . 2 . . 3 3 . 3 2 . 2 . Parts Field Recycled 62 | . . . . . . . 14 . . 43 5 . . . . . . Retrieved Matter 719 | . . . . . . . 156 . . 538 25 . . . . . . Parts Self-Destructed 5 | . . . . . . . . 5 . . . . . . . . . Prevented . | . . . . . . . . . . . . . . . . . . Kills | -11 -10 -10 -10 -9 -8 -8 -7 -7 -7 -6 -5 -5 -5 -4 -4 -3 -3 ------- Run | Yrd Mat Min Exi Min Mat Gar Fac Low Low Fac Fac Gar Fac Fac Gar Res Arm Combat Hostiles Destroyed 202 | . 15 2 . . 3 22 31 7 . 32 8 30 16 16 3 17 . Melee 3 | . . . . . . . 2 . . . . . . 1 . . . Guns 75 | . 15 2 . . . 13 9 . . 10 4 12 4 1 1 4 . Cannons 76 | . . . . . 2 6 15 1 . 15 4 4 11 5 1 12 . AOE 44 | . . . . . . 3 5 6 . 7 . 14 . 8 . 1 . Classes Destroyed 20 | . 4 . . 1 2 1 6 . . 2 . . 1 . 2 1 . Worker 7 | . . . . . . . 2 . . 1 2 . . 2 . . . Builder 11 | . . . . 1 . . 3 . . 2 . . 2 . . 3 . Hauler 5 | . 1 . . . . . 1 . . 1 . . 1 . . 1 . Recycler 14 | . . . . . . . 7 . . 5 . . 1 . . 1 . Mechanic 3 | . . . . . . . 1 . . 1 . . . . . 1 . Operator 8 | . 2 . . . 1 . 4 . . . . . . . . 1 . Watcher 4 | . . . . . . . 2 . . . 1 . . . . 1 . Swarmer 44 | . 6 2 . . . 5 4 4 . 4 . . 4 9 1 5 . Saboteur 1 | . . . . . . . . . . . . . . . 1 . . Grunt 76 | . 9 1 . . . 6 11 3 . 15 4 21 4 . . 2 . Brawler 5 | . . . . . . . . . . 1 . 3 . 1 . . . Duelist 7 | . . . . . . . 1 . . 3 . . 1 1 . 1 . Protector 1 | . . . . . . . 1 . . . . . . . . . . Sentry 16 | . . . . . 1 6 4 . . 3 1 . . . 1 . . Specialist 5 | . . . . . . . . . . 2 . . . . . 3 . Hunter 14 | . . . . . 2 3 2 . . 2 1 2 . 2 . . . Programmer 32 | . . . . . . 2 8 . . 2 2 4 6 3 . 5 . Heavy 1 | . . . . . . . . . . . . . . . . 1 . Behemoth 1 | . . . . . . . . . . . . . 1 . . . . Striker 1 | . . . . . . . . . . . . . . . 1 . . Best Kill Streak 17 | . 4 2 . 1 1 4 5 4 . 5 3 17 5 5 1 9 . Combat Bots Only 17 | . 4 2 . . 1 4 5 4 . 5 2 17 4 5 1 9 . Max Kills in Single Turn 4 | . 1 1 . 1 1 2 3 4 . 3 1 4 1 3 1 2 . Gunslinging . | . . . . . . . . . . . . . . . . . . Exploded 4 | . . . . . . 2 3 4 . 3 . 4 . 3 . 1 . Melee 1 | . . . . . . . 1 . . . . . . 1 . . . Uniques/NPCs Destroyed . | . . . . . . . . . . . . . . . . . . Combat | -11 -10 -10 -10 -9 -8 -8 -7 -7 -7 -6 -5 -5 -5 -4 -4 -3 -3 -------- Run | Yrd Mat Min Exi Min Mat Gar Fac Low Low Fac Fac Gar Fac Fac Gar Res Arm Hostile Shots Fired 1777 | . 93 6 . . 23 174 393 5 . 264 57 118 127 231 11 226 49 Missed 531 | . 25 1 . . 8 46 125 3 . 81 20 38 29 78 3 59 15 Damage Taken 22114 | . 654 40 . . 241 1738 3516 25 . 2277 897 1873 2042 3030 335 4125 1321 Core 3830 | . 103 9 . . 51 183 342 . . 219 237 337 287 743 . 447 872 Absorbed by Shields 315 | . . . . . . . . . . 165 . 150 . . . . . Redirected to Shielding 257 | . . . . . . . . . . . . . 85 22 14 136 . Ignored by Resistances 193 | . . . . . . . . . . 103 46 . 44 . . . . Regen/Repaired (Parts) 61 | . . . . . . . 61 . . . . . . . . . . Core Remaining (%) 55 | 100 . . . 55 . 57 . . 51 74 . . 13 . 35 . . Volleys Fired 730 | . 67 6 . 1 17 98 127 3 . 106 34 58 77 44 25 53 14 Largest 4 | . 2 2 . 2 3 3 3 3 . 3 3 3 3 4 4 4 2 Hottest 310 | . 76 76 . 76 135 154 165 141 . 170 157 258 233 258 282 310 151 Shots Fired 1660 | . 134 12 . 2 51 206 267 7 . 265 97 140 136 90 51 185 17 Gun 918 | . 134 12 . 2 32 146 94 . . 149 66 100 54 14 37 78 . Cannon 644 | . . . . . 19 54 147 5 . 112 31 31 55 58 14 101 17 Launcher 43 | . . . . . . 6 2 2 . 4 . 9 3 11 . 6 . Special 55 | . . . . . . . 24 . . . . . 24 7 . . . Kinetic 896 | . 97 6 . 1 34 124 190 5 . 191 40 62 . 37 11 85 13 Thermal 557 | . 37 6 . 1 17 76 51 . . 70 57 69 56 20 26 71 . Explosive 26 | . . . . . . 6 2 2 . 4 . 9 3 . . . . Electromagnetic 127 | . . . . . . . . . . . . . 54 26 14 29 4 Robot Hit Streak 16 | . 12 2 . 4 8 9 16 2 . 9 9 15 16 12 6 16 2 Robot Miss Streak 7 | . 4 4 . . 3 5 7 4 . 7 3 6 5 4 5 5 2 Penetration Max 1 | . . . . . . . 1 . . 1 1 1 . . . . 1 Secondary Targets 8 | . 5 1 . . . . . . . 1 . 1 . . . . . Max Gunslinging Chain 1 | . 1 1 . . . . . . . 1 . 1 . . . . . Shots Hit Robots 978 | . 82 3 . 2 34 108 181 3 . 157 57 78 76 51 21 117 8 Core Hits 645 | . 35 4 . 1 9 63 114 12 . 125 28 117 33 41 6 54 3 Critical Kills 6 | . . . . . . 1 . . . 1 1 1 1 . 1 . . Critical Parts Destroyed 3 | . . . . . . . . . . 1 . 1 . . 1 . . Critical Strikes 66 | . 2 1 . . 4 3 10 . . 12 1 5 5 7 3 12 1 Burn 20 | . 2 1 . . 3 1 2 . . 6 . 3 . . . 2 . Meltdown 1 | . . . . . . . . . . . . . 1 . . . . Destroy 8 | . . . . . . 1 . . . 2 1 2 . . 2 . . Blast 32 | . . . . . 1 1 8 . . 4 . . . 7 . 10 1 Corrupt 5 | . . . . . . . . . . . . . 4 . 1 . . Melee Attacks 26 | . . . . . . . 21 . . . . . . 1 4 . . Impact . | . . . . . . . . . . . . . . . . . . Slashing 26 | . . . . . . . 21 . . . . . . 1 4 . . Piercing . | . . . . . . . . . . . . . . . . . . Sneak Attacks 10 | . . . . . . . 10 . . . . . . . . . . Combat Hostiles . | . . . . . . . . . . . . . . . . . . Follow-up Attacks . | . . . . . . . . . . . . . . . . . . Damage Inflicted 31072 | . 840 51 . 25 470 2014 5418 498 . 5105 1340 5321 2104 2586 590 4424 286 Guns 9984 | . 840 51 . 25 240 1041 1158 . . 1894 884 1382 551 153 329 1436 . Cannons 12201 | . . . . . 230 808 2374 57 . 1976 456 665 1249 1287 261 2552 286 Explosions 7820 | . . . . . . 165 863 441 . 1235 . 3274 302 1104 . 436 . Melee 1065 | . . . . . . . 1023 . . . . . . 42 . . . Ramming 2 | . . . . . . . . . . . . . 2 . . . . Kinetic 12744 | . 432 7 . 10 283 1156 2927 57 . 2976 550 974 . 846 165 2127 234 Thermal 8727 | . 408 44 . 15 187 693 697 . . 1071 790 1073 1249 910 164 1426 . Explosive 5923 | . . . . . . 165 683 441 . 1058 . 3274 302 . . . . Electromagnetic 2611 | . . . . . . . 88 . . . . . 551 788 261 871 52 Impact . | . . . . . . . . . . . . . . . . . . Slashing 1065 | . . . . . . . 1023 . . . . . . 42 . . . Piercing . | . . . . . . . . . . . . . . . . . . Highest Corruption 27 | . . . . . . 6 18 18 18 2 2 6 19 27 27 16 16 Average Corruption 9 | . . . . . . 5 10 18 18 1 1 3 11 16 27 4 16 Corruption Purged . | . . . . . . . . . . . . . . . . . . Corruption Blocked . | . . . . . . . . . . . . . . . . . . Effects 454 | . . . . . . 47 176 22 3 18 6 15 65 17 58 21 6 Message Errors 78 | . . . . . . 5 24 6 . 2 . 1 16 2 13 7 2 Matter Fused 104 | . . . . . . 14 39 4 1 9 2 4 15 3 8 4 1 Heat Flow Errors 49 | . . . . . . 3 18 2 . 3 2 2 9 1 5 3 1 Energy Discharges 64 | . . . . . . 10 25 1 . 1 . 1 7 2 15 2 . Parts Rejected 6 | . . . . . . 1 4 . . . . . . . . 1 . Parts Fused 6 | . . . . . . 1 3 . 1 . . . . . 1 . . Data Loss (minor) 59 | . . . . . . 6 27 4 1 2 . 2 8 3 4 1 1 Data Loss (major) 22 | . . . . . . 1 13 1 . . . 1 1 1 2 2 . Misfires 20 | . . . . . . 1 10 . . 1 1 1 2 . 4 . . Alerts 16 | . . . . . . 1 8 2 . . . . 2 1 2 . . Misdirections 3 | . . . . . . . . . . . . . 1 1 . . 1 Weapon Failures 27 | . . . . . . 4 5 2 . . 1 3 4 3 4 1 . Overload Shots . | . . . . . . . . . . . . . . . . . . Overflow Damage 628 | . . . . . . 10 213 23 . 44 . 130 74 78 6 50 . Projectiles 357 | . . . . . . 10 50 . . 16 . 101 57 78 6 39 . Explosions 116 | . . . . . . . 8 23 . 28 . 29 17 . . 11 . Melee 155 | . . . . . . . 155 . . . . . . . . . . Knockbacks 108 | . . . . . 1 23 18 . . 43 . . . 9 . 12 2 Impact . | . . . . . . . . . . . . . . . . . . Kinetic 98 | . . . . . 1 17 18 . . 41 . . . 8 . 11 2 Secondary 10 | . . . . . . 6 . . . 2 . . . 1 . 1 . Self-Inflicted Damage 978 | . . . . . . 18 290 . . 28 . 488 65 22 . 67 . Shots 42 | . . . . . . 1 6 . . 2 . 25 3 1 . 4 . Rammed . | . . . . . . . . . . . . . . . . . . Targets Rammed 1 | . . . . . . . . . . . . . 1 . . . . Kicked 1 | . . . . . . . . . . . . . 1 . . . . Crushed . | . . . . . . . . . . . . . . . . . . Highest Temperature 556 | . 235 100 . 36 331 282 310 195 . 260 556 407 270 236 181 378 197 Average Temperature 89 | . 79 47 . 23 150 79 75 69 . 76 120 109 96 117 55 99 87 Received Heat Transfer 3445 | . 213 . . . 18 342 612 . . 687 99 450 294 222 9 499 . Effects 17 | . . . . . 2 . . . . . 10 . 3 1 . 1 . Shutdowns 3 | . . . . . . . . . . . 3 . . . . . . Energy Bleed 3 | . . . . . . . . . . . 1 . . 1 . 1 . Interference 8 | . . . . . 2 . . . . . 3 . 3 . . . . Short Circuit 2 | . . . . . . . . . . . 2 . . . . . . Damage (core) 1 | . . . . . . . . . . . 1 . . . . . . Siege Activations . | . . . . . . . . . . . . . . . . . . Robots Corrupted 2 | . . . . . . . . . . . . . . 1 1 . . Combat Hostiles 2 | . . . . . . . . . . . . . . 1 1 . . Parts Fried 11 | . . . . . . . . . . . . . 6 1 2 2 . Impact Corruptions 1 | . . . . . . 1 . . . . . . . . . . . Robots Melted 2 | . . . . . 1 . . . . . . . 1 . . . . Combat Hostiles 2 | . . . . . 1 . . . . . . . 1 . . . . Parts Melted 38 | . 1 . . . . 6 2 . . 3 3 6 13 . . 4 . Heat Transferred 15890 | . 1184 185 . 37 703 1622 1345 . . 2291 1332 1851 1750 825 285 2480 . Parts Sabotaged . | . . . . . . . . . . . . . . . . . . Parts Stolen . | . . . . . . . . . . . . . . . . . . Parts Stripped . | . . . . . . . . . . . . . . . . . . Power Chain Reactions 2 | . . . . . . . . . . . . . . 2 . . . Alert | -11 -10 -10 -10 -9 -8 -8 -7 -7 -7 -6 -5 -5 -5 -4 -4 -3 -3 ------- Run | Yrd Mat Min Exi Min Mat Gar Fac Low Low Fac Fac Gar Fac Fac Gar Res Arm Peak Influence 1123 | . 117 81 . 20 105 955 711 . . 748 520 1123 649 708 1053 1020 477 Initial 591 | . . 9 . . 7 68 501 . . 207 343 317 589 184 474 591 447 Average 409 | . 51 58 . 2 43 553 284 . . 375 399 850 398 350 726 851 448 Maximum Alert Level 4 | . . . . . . 3 3 . . 3 2 4 2 3 3 3 2 Low Security (%) 26 | 100 100 100 . 100 100 11 40 . . 2 . . 7 19 . . . Level 1 29 | . . . . . . 15 31 . . 65 50 9 53 48 . . . Level 2 27 | . . . . . . 41 25 . . 30 50 7 39 31 49 6 100 Level 3 17 | . . . . . . 31 2 . . 1 . 72 . 1 50 93 . Level 4 . | . . . . . . . . . . . . 11 . . . . . Level 5 . | . . . . . . . . . . . . . . . . . . High Security . | . . . . . . . . . . . . . . . . . . Max Security . | . . . . . . . . . . . . . . . . . . Squads Dispatched 46 | . 4 . . . . . 12 . . 7 2 . 8 5 . 5 3 Investigation 6 | . 2 . . . . . . . . . . . 3 1 . . . Extermination 17 | . . . . . . . 7 . . 2 1 . 3 2 . 2 . Reinforcement 17 | . 2 . . . . . 3 . . 4 1 . 2 . . 2 3 Assault 5 | . . . . . . . 1 . . 1 . . . 2 . 1 . Garrison 1 | . . . . . . . 1 . . . . . . . . . . Intercept . | . . . . . . . . . . . . . . . . . . Searches Triggered . | . . . . . . . . . . . . . . . . . . Construction Impeded 1 | . . . . . . . . . . 1 . . . . . . . Haulers Reinforced 2 | . . . . . . . . . . . . . 2 . . . . Active Scanning Responses . | . . . . . . . . . . . . . . . . . . Cargo Convoy Interrupts 1 | . . . . . . . . . . . 1 . . . . . . Stealth | -11 -10 -10 -10 -9 -8 -8 -7 -7 -7 -6 -5 -5 -5 -4 -4 -3 -3 --------- Run | Yrd Mat Min Exi Min Mat Gar Fac Low Low Fac Fac Gar Fac Fac Gar Res Arm Distress Signals 5 | . . . . . . . 2 . . . . . 1 . . 1 1 Communications Jammed . | . . . . . . . . . . . . . . . . . . Distress Signals . | . . . . . . . . . . . . . . . . . . Times Spotted 389 | . 25 5 . 2 3 26 73 6 . 38 21 33 54 45 13 37 8 Peak Tracking Total 14 | . 4 3 . 2 1 5 6 4 . 5 8 7 5 14 5 7 7 Tactical Retreats 18 | . . . . . . 2 2 . . 1 1 . 2 5 1 3 1 Traps | -11 -10 -10 -10 -9 -8 -8 -7 -7 -7 -6 -5 -5 -5 -4 -4 -3 -3 ------- Run | Yrd Mat Min Exi Min Mat Gar Fac Low Low Fac Fac Gar Fac Fac Gar Res Arm Traps Triggered 21 | . 3 . . . . 5 2 . . . 1 2 . 2 4 2 . Indirectly . | . . . . . . . . . . . . . . . . . . Trap Hack Attempts . | . . . . . . . . . . . . . . . . . . Triggered . | . . . . . . . . . . . . . . . . . . Disarmed . | . . . . . . . . . . . . . . . . . . Reprogrammed . | . . . . . . . . . . . . . . . . . . Reused . | . . . . . . . . . . . . . . . . . . Traps Extracted . | . . . . . . . . . . . . . . . . . . Installed . | . . . . . . . . . . . . . . . . . . Triggered . | . . . . . . . . . . . . . . . . . . Machines | -11 -10 -10 -10 -9 -8 -8 -7 -7 -7 -6 -5 -5 -5 -4 -4 -3 -3 ---------- Run | Yrd Mat Min Exi Min Mat Gar Fac Low Low Fac Fac Gar Fac Fac Gar Res Arm Machines Disabled 61 | . . . . 1 . 4 12 . . 6 1 2 5 23 3 3 1 Max in Single Turn 12 | . . . . . . 1 2 . . 6 1 1 1 12 1 1 1 Garrison Access 4 | . . . . . . . 2 . . 1 . . . . . 1 . Garrison Relay 8 | . . . . . . 4 . . . . . 2 . . 2 . . Machines Repaired . | . . . . . . . . . . . . . . . . . . Machines Dismantled . | . . . . . . . . . . . . . . . . . . Machines Sabotaged . | . . . . . . . . . . . . . . . . . . Overloaded Fab Kills . | . . . . . . . . . . . . . . . . . . Hacking | -11 -10 -10 -10 -9 -8 -8 -7 -7 -7 -6 -5 -5 -5 -4 -4 -3 -3 --------- Run | Yrd Mat Min Exi Min Mat Gar Fac Low Low Fac Fac Gar Fac Fac Gar Res Arm Machines Accessed 47 | . 5 . . 1 2 2 12 1 . 5 4 1 7 1 1 4 1 Terminals 34 | . 5 . . . 1 2 8 . . 4 3 1 6 . 1 2 1 Fabricators 2 | . . . . . . . 1 . . . . . . . . 1 . Repair Stations 1 | . . . . . . . 1 . . . . . . . . . . Recycling Units 1 | . . . . . . . . . . . . . 1 . . . . Scanalyzers . | . . . . . . . . . . . . . . . . . . Garrison Access 7 | . . . . . 1 . 2 . . 1 1 . . 1 . 1 . Total Hacks 98 | . 9 . . 1 4 3 21 1 . 16 11 2 19 1 2 5 3 Successful 44 | . 5 . . 1 2 1 12 1 . 8 4 1 5 1 . 2 1 Failed 54 | . 4 . . . 2 2 9 . . 8 7 1 14 . 2 3 2 Catastrophic 7 | . . . . . . 1 1 . . 1 . . 3 . . 1 . Database Lockouts . | . . . . . . . . . . . . . . . . . . Manual 31 | . 3 . . . . . 7 . . 8 2 . 9 . . 2 . Terminals 84 | . 9 . . . 3 3 16 . . 15 10 2 18 . 2 3 3 Fabricators 2 | . . . . . . . 1 . . . . . . . . 1 . Repair Stations 2 | . . . . . . . 2 . . . . . . . . . . Recycling Units 1 | . . . . . . . . . . . . . 1 . . . . Scanalyzers . | . . . . . . . . . . . . . . . . . . Garrison Access 7 | . . . . . 1 . 2 . . 1 1 . . 1 . 1 . Terminal Hacks 23 | . 4 . . 1 1 1 5 1 . 4 1 1 3 . . . 1 Record 3 | . . . . . . . 1 1 . . 1 . . . . . . Prototype ID Bank 1 | . . . . . . . . . . 1 . . . . . . . Open Door 2 | . . . . 1 . . . . . . . . . . . . 1 Level Access Points 1 | . . . . . . . . . . . . . 1 . . . . Emergency Access Points 1 | . . . . . . . . . . . . 1 . . . . . Terminal Index 2 | . . . . . . . . . . 1 . . 1 . . . . Alert Level 7 | . 3 . . . 1 . 3 . . . . . . . . . . Unreport Threat 3 | . 1 . . . . . 1 . . . . . 1 . . . . Reprogram Traps 1 | . . . . . . . . . . 1 . . . . . . . Registered Components 1 | . . . . . . . . . . 1 . . . . . . . Garrison Registry 1 | . . . . . . 1 . . . . . . . . . . . Fabricator Hacks 2 | . . . . . . . 1 . . . . . . . . 1 . Network Status 2 | . . . . . . . 1 . . . . . . . . 1 . Repair Station Hacks 2 | . . . . . . . 2 . . . . . . . . . . Scan Component 1 | . . . . . . . 1 . . . . . . . . . . Repair 1 | . . . . . . . 1 . . . . . . . . . . Recycling Unit Hacks 1 | . . . . . . . . . . . . . 1 . . . . Retrieve Components 1 | . . . . . . . . . . . . . 1 . . . . Scanalyzer . | . . . . . . . . . . . . . . . . . . Garrison Access Hacks 7 | . . . . . 1 . 2 . . 1 1 . . 1 . 1 . Unlock Access 3 | . . . . . 1 . . . . . 1 . . 1 . . . Seal Access 4 | . . . . . . . 2 . . 1 . . . . . 1 . Unauthorized Hacks 9 | . 1 . . . . . 2 . . 3 2 . 1 . . . . Terminals 9 | . 1 . . . . . 2 . . 3 2 . 1 . . . . Track 4 | . . . . . . . 1 . . 1 1 . 1 . . . . Assimilate 1 | . . . . . . . . . . 1 . . . . . . . Operators 4 | . 1 . . . . . 1 . . 1 1 . . . . . . Fabricators . | . . . . . . . . . . . . . . . . . . Repair Stations . | . . . . . . . . . . . . . . . . . . Recycling Units . | . . . . . . . . . . . . . . . . . . Scanalyzers . | . . . . . . . . . . . . . . . . . . Garrison Access . | . . . . . . . . . . . . . . . . . . Data Cores Recovered 2 | . . . . . . . 1 . . . . . . . . 1 . Used 1 | . . . . . . . . . . . . . . . . 1 . Hacking Detections 32 | . 4 . . . 1 2 7 . . 3 3 1 6 1 1 3 . Full Trace Events 2 | . . . . . . . . . . . . . 2 . . . . Feedback Events . | . . . . . . . . . . . . . . . . . . Feedback Blocked . | . . . . . . . . . . . . . . . . . . Robot Schematics Acquired . | . . . . . . . . . . . . . . . . . . Robots Built . | . . . . . . . . . . . . . . . . . . Authchips . | . . . . . . . . . . . . . . . . . . Time . | . . . . . . . . . . . . . . . . . . Total Robot Build Rating . | . . . . . . . . . . . . . . . . . . Part Schematics Acquired . | . . . . . . . . . . . . . . . . . . Parts Built . | . . . . . . . . . . . . . . . . . . Authchips . | . . . . . . . . . . . . . . . . . . Time . | . . . . . . . . . . . . . . . . . . Total Part Build Rating . | . . . . . . . . . . . . . . . . . . Parts Repaired 1 | . . . . . . . 1 . . . . . . . . . . Time 44 | . . . . . . . 44 . . . . . . . . . . Parts Recycled . | . . . . . . . . . . . . . . . . . . Recycled Matter . | . . . . . . . . . . . . . . . . . . Retrieved Matter . | . . . . . . . . . . . . . . . . . . Retrieved Components 7 | . . . . . . . . . . . . . 7 . . . . Parts Scanalyzed . | . . . . . . . . . . . . . . . . . . Part Schematics Acquired . | . . . . . . . . . . . . . . . . . . Parts Damaged . | . . . . . . . . . . . . . . . . . . Bothacking | -11 -10 -10 -10 -9 -8 -8 -7 -7 -7 -6 -5 -5 -5 -4 -4 -3 -3 ------------ Run | Yrd Mat Min Exi Min Mat Gar Fac Low Low Fac Fac Gar Fac Fac Gar Res Arm Used RIF Installer 4 | . . . . . . 2 . . . . . 1 . . 1 . . Hotswap 1 | . . . . . . . . . . . . 1 . . . . . Structural Interface 1 | . . . . . . 1 . . . . . . . . . . . Autooverride 1 | . . . . . . . . . . . . . . . 1 . . Robots Hacked 28 | . . . . . . . 9 . . . . . 15 4 . . . Non-combat 4 | . . . . . . . 2 . . . . . 2 . . . . Combat 24 | . . . . . . . 7 . . . . . 13 4 . . . Robot Hacks Applied 32 | . . . . . . . 10 . . . . . 18 4 . . . parse_system 1 | . . . . . . . . . . . . . . 1 . . . find_recycling 1 | . . . . . . . . . . . . . 1 . . . . purge_threat 4 | . . . . . . . 2 . . . . . 2 . . . . summon_haulers 1 | . . . . . . . 1 . . . . . . . . . . go_dormant 1 | . . . . . . . 1 . . . . . . . . . . overwrite_iff 11 | . . . . . . . 3 . . . . . 6 2 . . . formatsys_high 13 | . . . . . . . 3 . . . . . 9 1 . . . Relay Couplers Released 42 | . . . . . . 18 4 . . . . 11 . . 9 . . Machine Destruction 35 | . . . . . . 18 . . . . . 8 . . 9 . . Programmers 7 | . . . . . . . 4 . . . . 3 . . . . . Attached 13 | . . . . . . . 5 . . . . 2 5 . 1 . . Fabnet Peak Effective % . | . . . . . . . . . . . . . . . . . . Robots Rewired 8 | . . . . . . . . . . 1 . . . . 7 . . Allies Hacked 4 | . . . . . . . . . . . . . 3 1 . . . Hacks Repelled . | . . . . . . . . . . . . . . . . . . Allies | -11 -10 -10 -10 -9 -8 -8 -7 -7 -7 -6 -5 -5 -5 -4 -4 -3 -3 -------- Run | Yrd Mat Min Exi Min Mat Gar Fac Low Low Fac Fac Gar Fac Fac Gar Res Arm Total Allies 36 | . . 3 . . . . 6 . . 1 . . 13 3 10 . . Largest Group 8 | . . 3 1 1 1 . 1 . . 1 . . 4 1 8 8 . Highest-Rated Group 537 | . . 40 16 16 16 . 32 . . 40 . . 196 47 537 530 . Highest-Rated Ally 119 | . . 16 16 16 16 . 32 . . 40 . . 49 47 119 119 . Total Orders . | . . . . . . . . . . . . . . . . . . Ally Attacks 179 | . . 13 . 1 3 . 25 . . . . . 79 3 24 31 . Total Damage 5527 | . . 95 . . 31 . 667 . . . . . 1961 72 893 1808 . Kills 38 | . . 1 . . . . 4 . . . . . 15 . 8 10 . Allies Corrupted 3 | . . . . . . . . . . . . . 1 1 . 1 . Allies Melted 1 | . . . . . . . 1 . . . . . . . . . . Intel | -11 -10 -10 -10 -9 -8 -8 -7 -7 -7 -6 -5 -5 -5 -4 -4 -3 -3 ------- Run | Yrd Mat Min Exi Min Mat Gar Fac Low Low Fac Fac Gar Fac Fac Gar Res Arm Robot Analysis Total . | . . . . . . . . . . . . . . . . . . Derelict Logs Recovered 1 | . . . . . . . . 1 . . . . . . . . . Drone Launches 5 | . . . . . . . . . . . . . . . 5 . . Drone Recoveries 5 | . . . . . . . . . . . . . . . 5 . . Exploration | -11 -10 -10 -10 -9 -8 -8 -7 -7 -7 -6 -5 -5 -5 -4 -4 -3 -3 ------------- Run | Yrd Mat Min Exi Min Mat Gar Fac Low Low Fac Fac Gar Fac Fac Gar Res Arm Turns Passed 18534 | 73 1275 271 338 124 290 1756 5033 487 39 2331 774 781 1752 755 1094 1280 81 Spaces Moved 10084 | 51 651 152 212 74 138 1006 2517 383 32 1177 445 408 986 408 690 678 76 Core 300 | 19 . . . . . . . . . . . . . 162 71 3 45 Treads 4766 | 32 651 152 212 74 138 329 2287 . . . . . 250 154 109 378 . Legs 4879 | . . . . . . 677 230 383 32 1177 445 408 736 . 510 281 . Wheels . | . . . . . . . . . . . . . . . . . . Hover 131 | . . . . . . . . . . . . . . 92 . 8 31 Flight 8 | . . . . . . . . . . . . . . . . 8 . Fastest Speed 50 | 50 160 160 160 160 160 120 123 123 123 120 125 112 112 50 50 56 50 Average Speed 146 | 119 160 160 160 160 160 138 170 123 123 153 126 117 138 140 114 135 59 Slowest Speed 800 | 160 160 160 160 160 160 240 330 123 123 196 127 187 240 320 160 800 116 Overloaded Moves . | . . . . . . . . . . . . . . . . . . Propulsion Burnouts . | . . . . . . . . . . . . . . . . . . Robots Hopped . | . . . . . . . . . . . . . . . . . . Cave-ins Triggered 1 | . . . . . . . . . . . . . 1 . . . . Exploration Rate (%) 36 | 3 88 38 61 21 13 66 57 66 8 25 11 64 22 19 70 19 5 Regions Visited 17 Branch Regions 6 Pre-discovered Areas . | . . . . . . . . . . . . . . . . . . Known Exits Taken 5 | . . . . . 1 . . . . . 1 . 1 1 . 1 . Unknown Exits Taken 9 | 1 1 1 1 1 . . 1 1 1 1 . . . . . . . Scrap Searched 1 | . . . . . . . . 1 . . . . . . . . . Spaces Dug 7 | . . . . . . . . . . . . . 7 . . . . Terrain Destroyed 593 | . . . . . . 40 136 33 . 164 2 92 42 56 1 23 4 Melee . | . . . . . . . . . . . . . . . . . . Projectile 121 | . . . . . . . 21 2 . 23 2 11 14 20 1 23 4 AOE 472 | . . . . . . 40 115 31 . 141 . 81 28 36 . . . Terrain Rammed . | . . . . . . . . . . . . . . . . . . Walls Destroyed . | . . . . . . . . . . . . . . . . . . Machines Disabled . | . . . . . . . . . . . . . . . . . . Actions | -11 -10 -10 -10 -9 -8 -8 -7 -7 -7 -6 -5 -5 -5 -4 -4 -3 -3 --------- Run | Yrd Mat Min Exi Min Mat Gar Fac Low Low Fac Fac Gar Fac Fac Gar Res Arm Total 12606 | 63 776 171 211 78 174 1215 3026 388 31 1511 584 591 1278 523 956 934 96 Wait 608 | . 10 1 . 1 1 19 149 1 . 67 76 50 88 13 65 67 . Move 10068 | 50 650 151 211 73 138 1004 2516 382 31 1176 444 407 985 408 689 677 76 Hop . | . . . . . . . . . . . . . . . . . . Pick Up 377 | 7 23 6 . 2 6 38 76 1 . 45 10 28 44 16 26 47 2 Fast Attach . | . . . . . . . . . . . . . . . . . . Attach 319 | 6 12 3 . . 7 21 63 . . 49 9 21 32 23 24 45 4 Detach 40 | . . . . . 1 . 4 . . 13 . 3 6 5 . 8 . Swap 47 | . 1 . . . . 2 9 1 . 5 2 5 12 4 2 4 . Drop 248 | . 13 3 . 1 4 25 61 . . 37 9 14 33 9 11 28 . Fire 730 | . 67 6 . 1 17 98 127 3 . 106 34 58 77 44 25 53 14 Melee 26 | . . . . . . . 21 . . . . . . 1 4 . . Ram . | . . . . . . . . . . . . . . . . . . Kick 1 | . . . . . . . . . . . . . 1 . . . . Crush . | . . . . . . . . . . . . . . . . . . Escape Stasis 34 | . . . . . . 8 . . . . . 5 . . 16 5 . Rewire 108 | . . 1 . . . . . . . 13 . . . . 94 . . Trap . | . . . . . . . . . . . . . . . . . . Miscellaneous . | . . . . . . . . . . . . . . . . . . Route ------- -11/Scrapyard -10/Materials (discovered 4 exits: [*Mat x2] / [*Min x2]) -10/Mines -10/Exiles -9/Mines -8/Materials -8/Garrison (discovered 3 exits: *Fac x3) -7/Factory (discovered 5 exits: *Fac x2 / [*Sto] / *Low x2) -7/Lower Caves -7/Lower Caves -6/Factory (discovered 2 exits: *Fac / [*Low]) -5/Factory (discovered 3 exits: *Fac / *Ext / Gar) -5/Garrison (discovered 2 exits: *Fac x2) -5/Factory (discovered 6 exits: *Fac x4 / [*Upp] / *Ext) -4/Factory -4/Garrison (discovered 2 exits: *Res x2) -3/Research -3/Armory History --------- Turn | Location | Event 5 | -11/Scrapyard | Discovered new exit (range 15) 74 | -11/Scrapyard | Entered Materials 315 | -10/Materials | Build established: Mutant 323 | -10/Materials | Discovered new exit (range 6) 666 | -10/Materials | Discovered new exit (range 16) 995 | -10/Materials | Discovered new exit (range 16) 1182 | -10/Materials | Discovered new exit (range 11) 1349 | -10/Materials | Entered Mines 1354 | -10/Mines | Assisted by bots powering up and referring to "LRC-V3" 1361 | -10/Mines | Met a Derelict bent on vengeance 1503 | -10/Mines | Joined a pair of Derelicts in attacking an 0b10 outpost 1614 | -10/Mines | Deemed a non-threat by the Exiles lab entrance 1614 | -10/Mines | Discovered new exit (range 5) 1620 | -10/Mines | Entered Exiles 1620 | -10/Exiles | Found Exiles lab abandoned 1620 | -10/Exiles | Accompanied by 1 ally 1819 | -10/Exiles | Build established: Scavenger-Mutant 1942 | -10/Exiles | Discovered new exit (range 10) 1958 | -10/Exiles | Entered Mines 1958 | -9/Mines | Accompanied by 1 ally 1987 | -9/Mines | Found the Drone Emporium 1998 | -9/Mines | Found Prototype Device 2040 | -9/Mines | Discovered new exit (range 8) 2047 | -9/Mines | Received a Rocket Launcher from a helpful Derelict 2082 | -9/Mines | Entered Materials 2082 | -8/Materials | Accompanied by 1 ally 2082 | -8/Materials | Evolved 4 slots: Propulsion x1, Utility x2, Weapon x1 2255 | -8/Materials | Identified Splice Drone Bay 2372 | -8/Materials | Identified exit to Garrison 2372 | -8/Materials | Entered Garrison 2480 | -8/Garrison | Triggered checkpoint 2481 | -8/Garrison | Garrison Relay disabled 2639 | -8/Garrison | Build established: Scavenger-Tank 2756 | -8/Garrison | Triggered checkpoint 2813 | -8/Garrison | Triggered checkpoint 2881 | -8/Garrison | Lost 4 parts (1p2n1u) 3130 | -8/Garrison | Discovered new exit (range 72) 3130 | -8/Garrison | Discovered new exit (range 83) 3130 | -8/Garrison | Discovered new exit (range 29) 3146 | -8/Garrison | Build established: Scavenger-Gunner 3182 | -8/Garrison | Installed Relay Interface Framework 3300 | -8/Garrison | Garrison Relay disabled 3322 | -8/Garrison | Triggered checkpoint 3335 | -8/Garrison | Garrison Relay disabled 3633 | -8/Garrison | Garrison Relay disabled 3946 | -8/Garrison | Triggered checkpoint 4057 | -8/Garrison | Expanded RIF knowledge: Structural Interface 4128 | -8/Garrison | Entered Factory 4128 | -7/Factory | Evolved 2 slots: Utility x2 4514 | -7/Factory | Build established: Bothacker-Tank 4844 | -7/Factory | Build established: Bothacker-Mutant 4860 | -7/Factory | Garrison activated, responded to threat 5602 | -7/Factory | Discovered new exit (range 9) 5961 | -7/Factory | Found Prototype Launcher 5962 | -7/Factory | Identified Rocket Array 5965 | -7/Factory | Found Rocket Array 5967 | -7/Factory | Found Rocket Array 6002 | -7/Factory | Discovered new exit (range 12) 6084 | -7/Factory | Build established: Bothacker-Gunner 6172 | -7/Factory | Discovered new exit (range 15) 6818 | -7/Factory | Discovered new exit (range 16) 7098 | -7/Factory | Build established: Hacker-Gunner 7587 | -7/Factory | Build established: Hacker-Tank 7771 | -7/Factory | System corruption reached 10% 8930 | -7/Factory | Repaired Hvy. Laser 8958 | -7/Factory | First assault squad dispatched 9098 | -7/Factory | Discovered new exit (range 12) 9161 | -7/Factory | Entered Lower Caves 9232 | -7/Lower Caves | Build established: Hacker-Gunner 9339 | -7/Lower Caves | Learned Factory trap positions 9638 | -7/Lower Caves | Discovered new exit (range 7) 9648 | -7/Lower Caves | Entered another Lower Caves area 9676 | -7/Lower Caves | Discovered new exit (range 10) 9687 | -7/Lower Caves | Entered Factory 9687 | -6/Factory | Evolved 2 slots: Utility x2 9688 | -6/Factory | Loaded intel: 69 trap records 10228 | -6/Factory | Lost 3 parts (1p1n1w) 10501 | -6/Factory | Discovered new exit (range 15) 10908 | -6/Factory | Build established: Hacker-Tank 11437 | -6/Factory | First assault squad dispatched 11696 | -6/Factory | Discovered new exit (range 15) 11740 | -6/Factory | Found Unknown Device 12018 | -6/Factory | Entered another Factory area 12018 | -5/Factory | Evolved 2 slots: Power x1, Propulsion x1 12341 | -5/Factory | Discovered new exit (range 9) 12386 | -5/Factory | Discovered new exit (range 16) 12482 | -5/Factory | Identified exit to Factory 12505 | -5/Factory | Identified exit to Extension 12775 | -5/Factory | Identified exit to Garrison 12791 | -5/Factory | Cargo convoy interrupted 12792 | -5/Factory | Entered Garrison 12810 | -5/Garrison | Triggered checkpoint 12855 | -5/Garrison | Triggered checkpoint 12864 | -5/Garrison | Triggered checkpoint 12956 | -5/Garrison | Destroyed 17 combat bots 12995 | -5/Garrison | Lost 5 parts (2n1u2w) 13040 | -5/Garrison | Expanded RIF knowledge: Hotswap 13068 | -5/Garrison | Triggered checkpoint 13122 | -5/Garrison | Discovered new exit (range 10) 13257 | -5/Garrison | Discovered new exit (range 11) 13283 | -5/Garrison | Build established: Hacker-Gunner 13291 | -5/Garrison | Garrison Relay disabled 13327 | -5/Garrison | Garrison Relay disabled 13392 | -5/Garrison | Core integrity fell below 50% 13466 | -5/Garrison | Triggered checkpoint 13573 | -5/Garrison | Entered Factory 13684 | -5/Factory | Build established: Bothacker-Gunner 13781 | -5/Factory | Discovered exit to Extension (range 5) 14401 | -5/Factory | Lost 3 allies 14585 | -5/Factory | Spotted B-75 Beast 14600 | -5/Factory | Destroyed B-75 Beast 14629 | -5/Factory | Lost 3 parts (1p1u1w) 14630 | -5/Factory | Crushed by falling debris 14630 | -5/Factory | System corruption reached 10% 14642 | -5/Factory | P-70 Sage assimilated allied G-50 Soldier 14685 | -5/Factory | Lost 7 parts (1p3n2u1w) 14707 | -5/Factory | Core integrity fell below 20% 15318 | -5/Factory | Discovered new exit (range 4) 15325 | -5/Factory | Entered another Factory area 15325 | -4/Factory | Evolved 2 slots: Utility x1, Weapon x1 15453 | -4/Factory | Lost 4 parts (1n2u1w) 15736 | -4/Factory | Build established: Gunner 15825 | -4/Factory | First assault squad dispatched 15876 | -4/Factory | System corruption reached 10% 15954 | -4/Factory | Lost 13 parts (2p2n2u7w) 16072 | -4/Factory | Core integrity fell below 50% 16080 | -4/Factory | Identified exit to Garrison 16080 | -4/Factory | Entered Garrison 16080 | -4/Garrison | Warlord forces raided the area 16084 | -4/Garrison | Triggered checkpoint 16106 | -4/Garrison | Lost 3 parts (2n1u) 16192 | -4/Garrison | Triggered checkpoint 16204 | -4/Garrison | Triggered checkpoint 16236 | -4/Garrison | Triggered checkpoint 16267 | -4/Garrison | Triggered checkpoint 16274 | -4/Garrison | Garrison Relay disabled 16292 | -4/Garrison | Triggered checkpoint 16390 | -4/Garrison | Triggered checkpoint 16436 | -4/Garrison | Build established: Scavenger-Gunner 16437 | -4/Garrison | Lost 6 allies 16444 | -4/Garrison | Discovered new exit (range 12) 16488 | -4/Garrison | Spotted Striker 16507 | -4/Garrison | Destroyed Striker 16511 | -4/Garrison | Warlord forces retreated 16571 | -4/Garrison | Rewired Executioner 16578 | -4/Garrison | Rewired Executioner 16610 | -4/Garrison | Triggered checkpoint 16741 | -4/Garrison | Discovered new exit (range 11) 16802 | -4/Garrison | Build established: Scavenger-Tank 16840 | -4/Garrison | Triggered checkpoint 16899 | -4/Garrison | Expanded RIF knowledge: Autooverride 16922 | -4/Garrison | Found embedded Infiltrators 16932 | -4/Garrison | Triggered checkpoint 16968 | -4/Garrison | Garrison Relay disabled 17147 | -4/Garrison | Identified exit to Research 17174 | -4/Garrison | Entered Research 17174 | -3/Research | Accompanied by 8 allies 17174 | -3/Research | Evolved 2 slots: Utility x2 17276 | -3/Research | Lost 4 allies 17387 | -3/Research | Spotted B-86 Titan 17393 | -3/Research | Build established: Scavenger-Gunner 17396 | -3/Research | Allies destroyed B-86 Titan 17747 | -3/Research | Build established: Scavenger-Tank 17924 | -3/Research | First assault squad dispatched 18153 | -3/Research | Lost 6 parts (1p5u) 18203 | -3/Research | Discovered new exit (range 15) 18298 | -3/Research | System corruption reached 10% 18330 | -3/Research | Destroyed 9 combat bots 18410 | -3/Research | Lost 12 parts (1p4n2u5w) 18452 | -3/Research | Identified exit to Armory 18454 | -3/Research | Entered Armory 18491 | -3/Armory | Core integrity fell below 50% 18518 | -3/Armory | Core integrity fell below 20% 18535 | -3/Armory | Destroyed by C-35 Carver with Carbide Saw Last Messages --------------- 18508_ Slug penetrates Wall. 18511_ Knocked back. 18512_ VNOCZ2 DVG XB/TZTRQQB6# 18516_ Exp. Energy Well destroyed. 18516_ Knocked back. 18520_ Exp. Coolant Injector destroyed. 18520_ Adv. Target Analyzer severed. 18523_ Slug penetrates Wall. 18523_ Penetrated by Slug. 18525_ Slug penetrates Wall. 18525_ Penetrated by Slug. 18527_ Slug penetrates Wall. 18528_ Connecting with Door Terminal... >>Open(Door) Sealed Heavy Doors opened. 18530_ Acquired Linear Accelerator. 18531_ System corrupted: Component data lost. 18531_ Linear Accelerator severed. 18533_ Acquired Linear Accelerator. 18535_ C-35 Carver knocked back. Map ----- +----------------------------------------------------+ | ?????????????????????????????????????????????????? | | ?????????????????????????????????????????????????? | | ?????????????????????????????????????????????????? | | ?????????????????????????????????????????????????? | | ?????????????????????????????????????????????????? | | ??????????????????????????????????????????????#### | | ??????????????????????????????????????????????# # | | ??????????????????????????????????????????????# # | | ??????????????????????????????????????????###?# # | | ??????????????????????????????????????????? " # | | ???????????????????????????????????????# """" # # | | ???????????????????????????????????????# + # | | ???????????????????????????????????????# # # | | ???????????????????????????????????????# """" # # | | ???????????????????????????????????????????? ?# # | | ???????????????????????????????????????????#### # | | ???????????????????????????????????????#######% % | | ???????????????????????????????????????#!!" +% "% | | ???????????????????????????????????????#!!" # "% | | ???????????????????????????????????????#!! #% | | ???????????????????????????????????????#!!" #" %# | | ???????????????????????????????????????#!!" ## # | | ???????????????????????????????????????#!!" ## # | | ???????????????????????#######?????????#!!" ## # | | ???????????????????????#]] [[#?????????#!!" ## " | | ???????????????????????#]@ [[#?????????######## # | | ???????????????????????#]c [[#????????????????# # | | ???????????????????????#cc #????????????????# # | | ???????????????????????##h% ##???????????????## # | | ???????????????????????#T #???????????????#"[ # | | ?????????????????####### ################# %% | | ????????????? | | ???????????? = | | ????????????##################+#########+#####% | | ???????????????????????????? ?????? ???###"# | | ?????????????????????????? """"""????? ?????# # | | ????????????????????????# ??????????? ?????## | | ????????????????????????# ???????????? """"??????? | | ????????????????????????????????????? ??????????? | | ????????????????????????????????????? ??????????? | | ???????????????????????????????????? ??????????? | | ???????????????????????????????????? ???????????? | | ???????????????????????????????????###???????????? | | ?????????????????????????????????????????????????? | | ?????????????????????????????????????????????????? | | ?????????????????????????????????????????????????? | | ?????????????????????????????????????????????????? | | ?????????????????????????????????????????????????? | | ?????????????????????????????????????????????????? | | ?????????????????????????????????????????????????? | +----------------------------------------------------+ Best States ------------- Heat Dissipation 78 Coolant Potential 120 Energy Generation 37 Energy Capacity 995 Matter Stores 300 Matter Capacity 300 Sight Range 16 Robot Scan Range 16 Terrain Scan Density 10 Additional Mass Support 9 Armor Coverage 225 Resistance: KI 20 Resistance: TH 20 Resistance: EM 25 Propulsion Shielding 66 Phase Shifting 10 Evasion (%) 60 Target Analysis 11 Recoil Reduction 4 Particle Charging 20 Kinecelleration 30 Offensive Hacking 30 Defensive Hacking 12 Relay Coupler Types 2 Relay Coupler Value 92 Authchip Count 3 Item Schematics ----------------- None Robot Schematics ------------------ None Fabricated ------------ Nothing Alien Tech Used ----------------- None Achievements -------------- None Challenges ------------ None Game ------ Seed TerrainRecyclingSpear Manual? 0 Play Time 02:52:30 Cumulative 61.7 hours Start 2024.04.14 @ 23:31:52 End 2024.04.15 @ 02:41:34 Sessions 1 Manual Loads 0 Difficulty Rogue Special Mode None Game No. 54 Rogue 54 Adventurer 0 Explorer 0 Win Type - Total 0 Types 0/0/0/0/0/0/0/0/0 Lore% 37 Gallery% 48 Achievement% 29 Wizard Run 0 Options --------- Layout 1 ASCII 0 Keyboard 0 Movement Numpad Keybinds 0 Fullscreen 1 Font 24/Smallcaps Map View 50x35 Zoom Use 0% Tactical HUD 1 Map Filters NONE Filters NONE Steam 1 RUN: 533d7845-3e3f-47f3-a47e-32332345a0bf